[Event "Early-Titled-Tuesday-Blitz-October-17-2023"]
[Site "Chess.com"]
[Date "2023.10.17"]
[Round "7"]
[White "AsaHoffmann"]
[Black "aghasiyevkamal"]
[Result "0-1"]
[WhiteElo "2344"]
[BlackElo "2588"]
[TimeControl "180+1"]
[EndTime "9:20:21 PDT"]
[Termination "aghasiyevkamal won by resignation"]

1. d4 {[%clk 0:02:59.4]} 1... d6 {[%clk 0:02:59.1]} 2. e4 {[%clk 0:02:56.1]}
2... e5 {[%clk 0:02:58.5]} 3. Ne2 {[%clk 0:02:50.9]} 3... Nf6 {[%clk 0:02:53.5]}
4. Nbc3 {[%clk 0:02:50.5]} 4... Nbd7 {[%clk 0:02:51.3]} 5. Be3 {[%clk
0:02:49.6]} 5... Be7 {[%clk 0:02:43.7]} 6. f3 {[%clk 0:02:49.4]} 6... c6 {[%clk
0:02:40]} 7. Qd2 {[%clk 0:02:49.2]} 7... Qc7 {[%clk 0:02:21.6]} 8. a4 {[%clk
0:02:48]} 8... O-O {[%clk 0:02:12.9]} 9. g4 {[%clk 0:02:47.4]} 9... exd4 {[%clk
0:02:10.4]} 10. Bxd4 {[%clk 0:02:46.6]} 10... Ne5 {[%clk 0:02:10.3]} 11. Bg2
{[%clk 0:02:45.4]} 11... d5 {[%clk 0:01:54.1]} 12. g5 {[%clk 0:02:43.4]} 12...
Nh5 {[%clk 0:01:48.7]} 13. f4 {[%clk 0:02:39.2]} 13... Nc4 {[%clk 0:01:45.2]}
14. Qc1 {[%clk 0:02:35.7]} 14... dxe4 {[%clk 0:01:42.3]} 15. Nxe4 {[%clk
0:02:29.4]} 15... Bg4 {[%clk 0:01:41]} 16. Rf1 {[%clk 0:02:09.7]} 16... Bxe2
{[%clk 0:01:36.3]} 17. Kxe2 {[%clk 0:02:09]} 17... Rad8 {[%clk 0:01:37.2]} 18.
c3 {[%clk 0:02:07.2]} 18... c5 {[%clk 0:01:35.5]} 19. Be3 {[%clk 0:02:02.9]}
19... Rfe8 {[%clk 0:01:31.4]} 20. b3 {[%clk 0:02:01.4]} 20... Nxe3 {[%clk
0:01:29.8]} 21. Qxe3 {[%clk 0:02:01.2]} 21... Bd6 {[%clk 0:01:27.3]} 22. f5
{[%clk 0:01:52]} 22... Nf4+ {[%clk 0:01:24.4]} 23. Kf3 {[%clk 0:01:48.2]} 23...
Qc6 {[%clk 0:01:20.4]} 24. Bh1 {[%clk 0:01:44.4]} 24... Qd5 {[%clk 0:01:17.5]}
25. Kg4 {[%clk 0:01:42.5]} 25... Qd3 {[%clk 0:01:05.8]} 26. Qxd3 {[%clk
0:01:33.5]} 26... Nxd3 {[%clk 0:01:06.7]} 27. Rad1 {[%clk 0:01:32.9]} 27... Bb8
{[%clk 0:01:00.6]} 28. Ng3 {[%clk 0:00:59.8]} 28... b6 {[%clk 0:00:54.3]} 29.
Bc6 {[%clk 0:00:57.5]} 29... Ne5+ {[%clk 0:00:48.4]} 30. Kh5 {[%clk 0:00:56.2]}
30... Nxc6 {[%clk 0:00:45.4]} 31. g6 {[%clk 0:00:54.8]} 31... hxg6+ {[%clk
0:00:43]} 32. fxg6 {[%clk 0:00:54.5]} 32... fxg6+ {[%clk 0:00:42.3]} 33. Kxg6
{[%clk 0:00:54.3]} 33... Ne5+ {[%clk 0:00:42.8]} 34. Kh5 {[%clk 0:00:53.1]}
34... Kh7 {[%clk 0:00:38.7]} 35. Rde1 {[%clk 0:00:51]} 35... g6+ {[%clk
0:00:37.1]} 36. Kg5 {[%clk 0:00:48]} 36... Nf3+ {[%clk 0:00:36]} 37. Rxf3 {[%clk
0:00:47.7]} 37... Rd5+ {[%clk 0:00:34.5]} 38. Nf5 {[%clk 0:00:40.1]} 38... Rxe1
{[%clk 0:00:32.9]} 0-1

[Event "Early-Titled-Tuesday-Blitz-October-17-2023"]
[Site "Chess.com"]
[Date "2023.10.17"]
[Round "7"]
[White "DonCiao"]
[Black "AnaKuchava"]
[Result "1-0"]
[WhiteElo "2104"]
[BlackElo "2239"]
[TimeControl "180+1"]
[EndTime "9:20:22 PDT"]
[Termination "DonCiao won by checkmate"]

1. c4 {[%clk 0:03:00.9]} 1... e6 {[%clk 0:02:59.5]} 2. g3 {[%clk 0:03:00.5]}
2... d5 {[%clk 0:02:59.7]} 3. Bg2 {[%clk 0:03:00.5]} 3... Nf6 {[%clk 0:02:55]}
4. Nf3 {[%clk 0:03:00.5]} 4... d4 {[%clk 0:02:50]} 5. O-O {[%clk 0:02:59]} 5...
c5 {[%clk 0:02:49.7]} 6. e3 {[%clk 0:02:58.9]} 6... Nc6 {[%clk 0:02:47.1]} 7.
exd4 {[%clk 0:02:58.8]} 7... cxd4 {[%clk 0:02:47.9]} 8. d3 {[%clk 0:02:53.5]}
8... Bd6 {[%clk 0:02:46.5]} 9. Re1 {[%clk 0:02:53.5]} 9... O-O {[%clk 0:02:46]}
10. Na3 {[%clk 0:02:42.3]} 10... e5 {[%clk 0:02:37.9]} 11. b4 {[%clk 0:02:34.7]}
11... Bxb4 {[%clk 0:02:31.8]} 12. Re2 {[%clk 0:02:11.3]} 12... Re8 {[%clk
0:02:25.8]} 13. Rb1 {[%clk 0:02:08.2]} 13... Qd6 {[%clk 0:01:45.8]} 14. Nb5
{[%clk 0:02:03.1]} 14... Qb8 {[%clk 0:01:21.7]} 15. Bg5 {[%clk 0:01:55]} 15...
Be7 {[%clk 0:01:17.3]} 16. c5 {[%clk 0:01:24]} 16... h6 {[%clk 0:01:04.9]} 17.
Bxf6 {[%clk 0:01:22.2]} 17... Bxf6 {[%clk 0:01:05.8]} 18. Nd6 {[%clk 0:01:21.6]}
18... Rd8 {[%clk 0:00:57.3]} 19. Qb3 {[%clk 0:01:16.5]} 19... Be6 {[%clk
0:00:40]} 20. Qxb7 {[%clk 0:01:15.7]} 20... Qxb7 {[%clk 0:00:39.6]} 21. Rxb7
{[%clk 0:01:14]} 21... Rab8 {[%clk 0:00:33.5]} 22. Reb2 {[%clk 0:01:07]} 22...
Rxb7 {[%clk 0:00:33]} 23. Rxb7 {[%clk 0:01:06.2]} 23... Bxa2 {[%clk 0:00:31.9]}
24. Nd2 {[%clk 0:01:01.3]} 24... Ne7 {[%clk 0:00:19]} 25. Rxa7 {[%clk
0:01:00.9]} 25... Bd5 {[%clk 0:00:17.8]} 26. N2e4 {[%clk 0:00:59.4]} 26... Nc6
{[%clk 0:00:16.1]} 27. Rc7 {[%clk 0:00:57.4]} 27... Ra8 {[%clk 0:00:12.5]} 28.
Nxf6+ {[%clk 0:00:57]} 28... gxf6 {[%clk 0:00:12]} 29. Bxd5 {[%clk 0:00:57.3]}
29... Ra1+ {[%clk 0:00:10.4]} 30. Kg2 {[%clk 0:00:57]} 30... Nb4 {[%clk
0:00:10.8]} 31. Bxf7+ {[%clk 0:00:56.4]} 31... Kg7 {[%clk 0:00:10.8]} 32. Bc4+
{[%clk 0:00:55.4]} 32... Kg6 {[%clk 0:00:10.5]} 33. Bf7+ {[%clk 0:00:49.3]}
33... Kg5 {[%clk 0:00:09.5]} 34. h4+ {[%clk 0:00:47.7]} 34... Kg4 {[%clk
0:00:08.3]} 35. f3# {[%clk 0:00:46.3]} 1-0

[Event "Early-Titled-Tuesday-Blitz-October-17-2023"]
[Site "Chess.com"]
[Date "2023.10.17"]
[Round "7"]
[White "PoXerStar"]
[Black "Niilo1"]
[Result "1-0"]
[WhiteElo "2425"]
[BlackElo "2294"]
[TimeControl "180+1"]
[EndTime "9:20:25 PDT"]
[Termination "PoXerStar won on time"]

1. Nf3 {[%clk 0:03:00.6]} 1... Nf6 {[%clk 0:02:59.7]} 2. e3 {[%clk 0:03:01.5]}
2... g6 {[%clk 0:02:59.9]} 3. b3 {[%clk 0:03:01.5]} 3... Bg7 {[%clk 0:03:00]} 4.
Bb2 {[%clk 0:03:02.4]} 4... O-O {[%clk 0:03:00.5]} 5. c4 {[%clk 0:03:02.3]} 5...
d6 {[%clk 0:03:00.1]} 6. Nc3 {[%clk 0:03:02.2]} 6... Nc6 {[%clk 0:02:59.6]} 7.
d4 {[%clk 0:03:02.4]} 7... e5 {[%clk 0:02:59.4]} 8. Be2 {[%clk 0:03:01.7]} 8...
Ne8 {[%clk 0:02:55.1]} 9. Rc1 {[%clk 0:02:56.7]} 9... f5 {[%clk 0:02:52]} 10. a3
{[%clk 0:02:52.9]} 10... a5 {[%clk 0:02:48.3]} 11. d5 {[%clk 0:02:43.5]} 11...
Ne7 {[%clk 0:02:46.7]} 12. b4 {[%clk 0:02:44.4]} 12... axb4 {[%clk 0:02:44.7]}
13. axb4 {[%clk 0:02:45.3]} 13... h6 {[%clk 0:02:37.6]} 14. c5 {[%clk
0:02:41.6]} 14... g5 {[%clk 0:02:36.3]} 15. e4 {[%clk 0:02:30]} 15... f4 {[%clk
0:02:14.3]} 16. Nd2 {[%clk 0:02:27.4]} 16... Nf6 {[%clk 0:02:09.2]} 17. Nc4
{[%clk 0:02:20.4]} 17... g4 {[%clk 0:01:57]} 18. f3 {[%clk 0:02:17.9]} 18... Ng6
{[%clk 0:01:49.1]} 19. cxd6 {[%clk 0:02:14.8]} 19... cxd6 {[%clk 0:01:49]} 20.
Nb5 {[%clk 0:02:15.7]} 20... Ne8 {[%clk 0:01:24.3]} 21. fxg4 {[%clk 0:02:03.8]}
21... Qh4+ {[%clk 0:01:23.2]} 22. Kd2 {[%clk 0:02:03.6]} 22... Qg5 {[%clk
0:00:38.6]} 23. Kc2 {[%clk 0:01:55.1]} 23... Nh4 {[%clk 0:00:30.1]} 24. Bf3
{[%clk 0:01:50.6]} 24... Qg6 {[%clk 0:00:25.1]} 25. Qe1 {[%clk 0:01:42]} 25...
Nxg2 {[%clk 0:00:11]} 26. Bxg2 {[%clk 0:01:41.5]} 26... f3 {[%clk 0:00:11.6]}
27. Bf1 {[%clk 0:01:35.5]} 27... Bd7 {[%clk 0:00:09.4]} 28. Nb6 {[%clk
0:01:26.3]} 28... Bxb5 {[%clk 0:00:05.9]} 29. Bxb5 {[%clk 0:01:27.2]} 29... f2
{[%clk 0:00:05.2]} 30. Qe2 {[%clk 0:01:26.8]} 30... Rd8 {[%clk 0:00:03.6]} 31.
Bxe8 {[%clk 0:01:20.8]} 31... Qxe8 {[%clk 0:00:02.8]} 32. Kb1 {[%clk 0:01:19.7]}
32... Qg6 {[%clk 0:00:02.1]} 33. Rhf1 {[%clk 0:01:18.1]} 33... Rf4 {[%clk
0:00:02]} 34. Rxf2 {[%clk 0:01:11.2]} 34... Rxe4 {[%clk 0:00:02.1]} 35. Qc2
{[%clk 0:01:05]} 35... Qxg4 {[%clk 0:00:02.5]} 36. Rg2 {[%clk 0:01:05.3]} 36...
Qh5 {[%clk 0:00:02.2]} 37. Rcg1 {[%clk 0:01:06]} 1-0

[Event "Early-Titled-Tuesday-Blitz-October-17-2023"]
[Site "Chess.com"]
[Date "2023.10.17"]
[Round "7"]
[White "Alphafischer2019"]
[Black "verrbaa"]
[Result "1-0"]
[WhiteElo "2592"]
[BlackElo "2445"]
[TimeControl "180+1"]
[EndTime "9:20:27 PDT"]
[Termination "Alphafischer2019 won on time"]

1. e4 {[%clk 0:03:00.9]} 1... e5 {[%clk 0:02:59.3]} 2. Nf3 {[%clk 0:03:00.5]}
2... Nc6 {[%clk 0:02:59.5]} 3. Nc3 {[%clk 0:02:57.9]} 3... Nf6 {[%clk
0:02:57.7]} 4. d4 {[%clk 0:02:57.5]} 4... exd4 {[%clk 0:02:51.9]} 5. Nxd4 {[%clk
0:02:58.4]} 5... Bb4 {[%clk 0:02:11.2]} 6. Nxc6 {[%clk 0:02:57.1]} 6... bxc6
{[%clk 0:02:11.3]} 7. Bd3 {[%clk 0:02:57.9]} 7... d5 {[%clk 0:02:07]} 8. Bd2
{[%clk 0:02:55.1]} 8... O-O {[%clk 0:02:02.2]} 9. O-O {[%clk 0:02:54.3]} 9...
Bxc3 {[%clk 0:01:36.6]} 10. Bxc3 {[%clk 0:02:53.7]} 10... Nxe4 {[%clk
0:01:36.8]} 11. Bxe4 {[%clk 0:02:53.7]} 11... dxe4 {[%clk 0:01:37.1]} 12. Qe2
{[%clk 0:02:54.6]} 12... Bf5 {[%clk 0:01:34.7]} 13. Qe3 {[%clk 0:02:51.9]} 13...
Bg6 {[%clk 0:01:29]} 14. Rad1 {[%clk 0:02:49.8]} 14... Qc8 {[%clk 0:01:24.1]}
15. Qd4 {[%clk 0:02:46.3]} 15... f6 {[%clk 0:01:23.8]} 16. Qc4+ {[%clk
0:02:46.7]} 16... Rf7 {[%clk 0:01:05.2]} 17. Qxc6 {[%clk 0:02:46.2]} 17... Rb8
{[%clk 0:01:02.4]} 18. Qc5 {[%clk 0:02:35]} 18... Qa6 {[%clk 0:00:56.8]} 19. a3
{[%clk 0:02:32]} 19... Qb6 {[%clk 0:00:55.4]} 20. Qe3 {[%clk 0:02:15.8]} 20...
Qxe3 {[%clk 0:00:51.6]} 21. fxe3 {[%clk 0:02:15.5]} 21... Kf8 {[%clk 0:00:38.8]}
22. g4 {[%clk 0:02:12.7]} 22... f5 {[%clk 0:00:19.1]} 23. h3 {[%clk 0:02:06.5]}
23... Ke8 {[%clk 0:00:15.3]} 24. Kg2 {[%clk 0:02:06.3]} 24... Rd8 {[%clk
0:00:13.1]} 25. Rxd8+ {[%clk 0:02:05]} 25... Kxd8 {[%clk 0:00:14]} 26. g5 {[%clk
0:02:01.9]} 26... Bh5 {[%clk 0:00:12.6]} 27. Kg3 {[%clk 0:02:02.1]} 27... Bf3
{[%clk 0:00:12.2]} 28. Kf4 {[%clk 0:02:02.2]} 28... g6 {[%clk 0:00:11.7]} 29.
Rf2 {[%clk 0:02:02]} 29... Rd7 {[%clk 0:00:11.1]} 30. Bd4 {[%clk 0:01:59.6]}
30... a6 {[%clk 0:00:10.5]} 31. b4 {[%clk 0:02:00]} 31... Ke7 {[%clk 0:00:10]}
32. c4 {[%clk 0:01:58.6]} 32... c6 {[%clk 0:00:09.7]} 33. a4 {[%clk 0:01:59]}
33... Rb7 {[%clk 0:00:08.5]} 34. Rb2 {[%clk 0:01:58.8]} 34... Ke6 {[%clk
0:00:08.6]} 35. b5 {[%clk 0:01:54.2]} 35... cxb5 {[%clk 0:00:08.5]} 36. axb5
{[%clk 0:01:55.1]} 36... axb5 {[%clk 0:00:08.8]} 37. cxb5 {[%clk 0:01:56]} 37...
Bd1 {[%clk 0:00:06.5]} 38. b6 {[%clk 0:01:54.5]} 38... Ba4 {[%clk 0:00:06.4]}
39. Ra2 {[%clk 0:01:54]} 39... Bc6 {[%clk 0:00:05.8]} 40. Ra5 {[%clk 0:01:53.8]}
40... Kd6 {[%clk 0:00:03.9]} 41. h4 {[%clk 0:01:48.7]} 41... Ke6 {[%clk
0:00:03.8]} 42. Re5+ {[%clk 0:01:47.3]} 42... Kd6 {[%clk 0:00:03.9]} 43. Bc5+
{[%clk 0:01:47]} 43... Kd7 {[%clk 0:00:02.8]} 44. h5 {[%clk 0:01:46.7]} 44...
Kd8 {[%clk 0:00:01.8]} 45. h6 {[%clk 0:01:46.4]} 45... Kd7 {[%clk 0:00:02.1]}
46. Re7+ {[%clk 0:01:41.1]} 46... Kd8 {[%clk 0:00:02.5]} 47. Rg7 {[%clk
0:01:30]} 47... Kc8 {[%clk 0:00:02.9]} 48. Ke5 {[%clk 0:01:28.3]} 48... Kd8
{[%clk 0:00:01.7]} 49. Kd6 {[%clk 0:01:26.1]} 1-0

[Event "Early-Titled-Tuesday-Blitz-October-17-2023"]
[Site "Chess.com"]
[Date "2023.10.17"]
[Round "7"]
[White "Akylbek2021"]
[Black "UK_23"]
[Result "0-1"]
[WhiteElo "2274"]
[BlackElo "2414"]
[TimeControl "180+1"]
[EndTime "9:20:27 PDT"]
[Termination "UK_23 won by resignation"]

1. e4 {[%clk 0:03:00.9]} 1... e5 {[%clk 0:03:00.3]} 2. Nf3 {[%clk 0:03:00.7]}
2... Nc6 {[%clk 0:03:00.9]} 3. d4 {[%clk 0:03:01.2]} 3... exd4 {[%clk
0:03:01.1]} 4. Bc4 {[%clk 0:03:01.9]} 4... Nf6 {[%clk 0:03:00.6]} 5. O-O {[%clk
0:03:00.2]} 5... Nxe4 {[%clk 0:02:57.5]} 6. Re1 {[%clk 0:03:00.3]} 6... d5
{[%clk 0:02:57.9]} 7. Bb5 {[%clk 0:02:58.3]} 7... Bc5 {[%clk 0:02:51.1]} 8. Nxd4
{[%clk 0:02:56.4]} 8... O-O {[%clk 0:02:50.2]} 9. Be3 {[%clk 0:02:47.6]} 9...
Bb6 {[%clk 0:02:30.3]} 10. Nxc6 {[%clk 0:02:39.2]} 10... bxc6 {[%clk 0:02:28.4]}
11. Bxc6 {[%clk 0:02:39.4]} 11... Bxe3 {[%clk 0:02:18.4]} 12. Rxe3 {[%clk
0:02:38.2]} 12... Qf6 {[%clk 0:01:39.7]} 13. Rxe4 {[%clk 0:02:06.5]} 13... Qxc6
{[%clk 0:01:37.9]} 14. Rd4 {[%clk 0:01:56.9]} 14... Rb8 {[%clk 0:01:28.9]} 15.
Nc3 {[%clk 0:01:20.3]} 15... Be6 {[%clk 0:01:24.7]} 16. Na4 {[%clk 0:01:06.6]}
16... Qb5 {[%clk 0:00:58.8]} 17. b3 {[%clk 0:00:32.6]} 17... c5 {[%clk
0:00:58.4]} 18. Rh4 {[%clk 0:00:32.9]} 18... d4 {[%clk 0:00:44.7]} 19. Qh5
{[%clk 0:00:32.6]} 19... h6 {[%clk 0:00:38.7]} 20. Qxc5 {[%clk 0:00:31.7]} 20...
Rfc8 {[%clk 0:00:27.9]} 21. Qxb5 {[%clk 0:00:19.4]} 21... Rxb5 {[%clk
0:00:28.8]} 22. Rc1 {[%clk 0:00:14.6]} 22... d3 {[%clk 0:00:24.6]} 23. c4 {[%clk
0:00:14.8]} 23... d2 {[%clk 0:00:21.8]} 24. Rd1 {[%clk 0:00:15]} 24... Re5
{[%clk 0:00:22.5]} 25. Rd4 {[%clk 0:00:13.7]} 25... Re1+ {[%clk 0:00:21.6]} 0-1

[Event "Early-Titled-Tuesday-Blitz-October-17-2023"]
[Site "Chess.com"]
[Date "2023.10.17"]
[Round "7"]
[White "Mikhail_Golubev"]
[Black "ckgchess"]
[Result "0-1"]
[WhiteElo "2578"]
[BlackElo "2884"]
[TimeControl "180+1"]
[EndTime "9:20:29 PDT"]
[Termination "ckgchess won on time"]

1. e4 {[%clk 0:03:00.9]} 1... e5 {[%clk 0:03:00]} 2. Nf3 {[%clk 0:03:00.7]} 2...
Nf6 {[%clk 0:03:00.7]} 3. Nc3 {[%clk 0:02:59.3]} 3... Nc6 {[%clk 0:03:00.5]} 4.
d4 {[%clk 0:02:59.5]} 4... exd4 {[%clk 0:03:00.4]} 5. Nxd4 {[%clk 0:03:00.4]}
5... Nxe4 {[%clk 0:02:57.4]} 6. Nxe4 {[%clk 0:02:56.1]} 6... Qe7 {[%clk
0:02:57.4]} 7. f3 {[%clk 0:02:49.8]} 7... d5 {[%clk 0:02:55.6]} 8. Bb5 {[%clk
0:02:39.7]} 8... Bd7 {[%clk 0:02:53.5]} 9. Bxc6 {[%clk 0:02:33.9]} 9... bxc6
{[%clk 0:02:53.7]} 10. O-O {[%clk 0:02:33.6]} 10... dxe4 {[%clk 0:02:53.9]} 11.
Re1 {[%clk 0:02:33.7]} 11... O-O-O {[%clk 0:02:54.7]} 12. Rxe4 {[%clk
0:02:33.8]} 12... Qb4 {[%clk 0:02:48.1]} 13. Nb3 {[%clk 0:02:19.7]} 13... Qb7
{[%clk 0:02:42.7]} 14. Qe2 {[%clk 0:02:08.3]} 14... Bd6 {[%clk 0:02:08.9]} 15.
Be3 {[%clk 0:01:52.6]} 15... Rhe8 {[%clk 0:02:03.5]} 16. Rxe8 {[%clk 0:01:45.3]}
16... Rxe8 {[%clk 0:02:03.8]} 17. Qf2 {[%clk 0:01:45.3]} 17... Bf5 {[%clk
0:01:48.5]} 18. Re1 {[%clk 0:01:09.6]} 18... Qb4 {[%clk 0:01:36.4]} 19. c3
{[%clk 0:01:01.7]} 19... Qa4 {[%clk 0:01:34.9]} 20. Bc5 {[%clk 0:00:17.5]} 20...
Rxe1+ {[%clk 0:01:28.7]} 21. Qxe1 {[%clk 0:00:17.4]} 21... Qxa2 {[%clk
0:01:29.6]} 22. Bxd6 {[%clk 0:00:10]} 22... Qxb3 {[%clk 0:01:22.2]} 23. Bf4
{[%clk 0:00:09.1]} 23... Qxb2 {[%clk 0:01:16.9]} 24. Qe5 {[%clk 0:00:08.5]}
24... Qb6+ {[%clk 0:01:14.1]} 25. Kf1 {[%clk 0:00:07]} 25... Be6 {[%clk
0:01:02.9]} 26. Ke1 {[%clk 0:00:05.4]} 26... a5 {[%clk 0:01:02.3]} 27. Kd2
{[%clk 0:00:04.2]} 27... a4 {[%clk 0:01:01.5]} 28. Be3 {[%clk 0:00:03.1]} 28...
Qb2+ {[%clk 0:01:01.3]} 29. Kd3 {[%clk 0:00:03.2]} 29... Qb1+ {[%clk 0:00:59.3]}
30. Kd2 {[%clk 0:00:02.8]} 30... Qb2+ {[%clk 0:00:54.9]} 31. Kd3 {[%clk
0:00:02.6]} 31... a3 {[%clk 0:00:46.8]} 32. Bf4 {[%clk 0:00:02.7]} 32... Qb6
{[%clk 0:00:44.1]} 0-1

[Event "Early-Titled-Tuesday-Blitz-October-17-2023"]
[Site "Chess.com"]
[Date "2023.10.17"]
[Round "7"]
[White "RETURNOFTHELAGGER"]
[Black "subham777"]
[Result "1-0"]
[WhiteElo "2679"]
[BlackElo "2537"]
[TimeControl "180+1"]
[EndTime "9:20:37 PDT"]
[Termination "RETURNOFTHELAGGER won on time"]

1. e4 {[%clk 0:02:52.6]} 1... e6 {[%clk 0:02:59.6]} 2. d4 {[%clk 0:02:44.9]}
2... d5 {[%clk 0:02:58.3]} 3. Nd2 {[%clk 0:02:45.2]} 3... c5 {[%clk 0:02:58.4]}
4. Ngf3 {[%clk 0:02:43.8]} 4... cxd4 {[%clk 0:02:57.3]} 5. Nxd4 {[%clk
0:02:44.7]} 5... Nc6 {[%clk 0:02:57.2]} 6. Nxc6 {[%clk 0:02:44.2]} 6... bxc6
{[%clk 0:02:58.1]} 7. Bd3 {[%clk 0:02:44.6]} 7... Bd6 {[%clk 0:02:58.3]} 8. O-O
{[%clk 0:02:42.3]} 8... Ne7 {[%clk 0:02:58.1]} 9. f4 {[%clk 0:02:39.3]} 9... O-O
{[%clk 0:02:52.7]} 10. c4 {[%clk 0:02:17.7]} 10... Bc7 {[%clk 0:02:41.5]} 11.
Nf3 {[%clk 0:02:15]} 11... Ng6 {[%clk 0:02:34.9]} 12. e5 {[%clk 0:02:08.7]}
12... a5 {[%clk 0:02:28.3]} 13. cxd5 {[%clk 0:02:07.1]} 13... cxd5 {[%clk
0:02:26.5]} 14. Ng5 {[%clk 0:01:34.3]} 14... h6 {[%clk 0:02:13.1]} 15. Nxf7
{[%clk 0:01:33.7]} 15... Rxf7 {[%clk 0:02:00.8]} 16. Bxg6 {[%clk 0:01:32.5]}
16... Rf8 {[%clk 0:02:00.6]} 17. Qh5 {[%clk 0:01:22.1]} 17... Ba6 {[%clk
0:01:54.4]} 18. Re1 {[%clk 0:01:14.9]} 18... Bb6+ {[%clk 0:01:49.6]} 19. Kh1
{[%clk 0:01:11.1]} 19... Rc8 {[%clk 0:01:44]} 20. f5 {[%clk 0:01:08.5]} 20...
Qe7 {[%clk 0:01:21.3]} 21. f6 {[%clk 0:01:03.4]} 21... gxf6 {[%clk 0:01:00.7]}
22. Bxh6 {[%clk 0:01:02.1]} 22... fxe5 {[%clk 0:00:56.5]} 23. Rxe5 {[%clk
0:00:53.7]} 23... Qc7 {[%clk 0:00:14]} 24. Rxe6 {[%clk 0:00:47.8]} 24... Rf2
{[%clk 0:00:03.5]} 25. Rae1 {[%clk 0:00:29.4]} 25... Bd4 {[%clk 0:00:01.1]} 26.
Re8+ {[%clk 0:00:22.9]} 1-0

[Event "Early-Titled-Tuesday-Blitz-October-17-2023"]
[Site "Chess.com"]
[Date "2023.10.17"]
[Round "7"]
[White "InitiatingASC"]
[Black "atalz0"]
[Result "1-0"]
[WhiteElo "2367"]
[BlackElo "2496"]
[TimeControl "180+1"]
[EndTime "9:20:37 PDT"]
[Termination "InitiatingASC won by resignation"]

1. e4 {[%clk 0:03:00.9]} 1... c6 {[%clk 0:02:59.3]} 2. Nf3 {[%clk 0:02:59.3]}
2... d5 {[%clk 0:02:58.5]} 3. Nc3 {[%clk 0:02:59.7]} 3... Bg4 {[%clk 0:02:56.6]}
4. exd5 {[%clk 0:02:57.5]} 4... cxd5 {[%clk 0:02:56.4]} 5. Bb5+ {[%clk
0:02:57.5]} 5... Nc6 {[%clk 0:02:46.9]} 6. h3 {[%clk 0:02:50.8]} 6... Bxf3
{[%clk 0:02:40.9]} 7. Qxf3 {[%clk 0:02:50.2]} 7... e6 {[%clk 0:02:40.5]} 8. O-O
{[%clk 0:02:40.3]} 8... Nf6 {[%clk 0:02:37.7]} 9. d4 {[%clk 0:02:34.7]} 9... a6
{[%clk 0:02:34.8]} 10. Bxc6+ {[%clk 0:02:33.2]} 10... bxc6 {[%clk 0:02:35.7]}
11. Bg5 {[%clk 0:02:23.3]} 11... Be7 {[%clk 0:02:35.7]} 12. Bxf6 {[%clk
0:02:23.3]} 12... Bxf6 {[%clk 0:02:36.3]} 13. Qe3 {[%clk 0:02:19.7]} 13... c5
{[%clk 0:02:26]} 14. Ne2 {[%clk 0:02:05.5]} 14... cxd4 {[%clk 0:02:18.2]} 15.
Nxd4 {[%clk 0:02:04.2]} 15... Qb6 {[%clk 0:02:10.6]} 16. Rad1 {[%clk 0:01:50.6]}
16... O-O {[%clk 0:02:07.5]} 17. b3 {[%clk 0:01:37.3]} 17... Rfc8 {[%clk
0:01:55.6]} 18. c3 {[%clk 0:01:09.5]} 18... Ra7 {[%clk 0:01:45.4]} 19. Rd3
{[%clk 0:01:07.6]} 19... Rac7 {[%clk 0:01:42.7]} 20. Rfd1 {[%clk 0:00:31.9]}
20... h6 {[%clk 0:01:29]} 21. Qg3 {[%clk 0:00:20.5]} 21... a5 {[%clk 0:01:13]}
22. Rf3 {[%clk 0:00:20.5]} 22... Bxd4 {[%clk 0:00:35]} 23. Rxd4 {[%clk
0:00:20.2]} 23... Rxc3 {[%clk 0:00:35.2]} 24. Rxc3 {[%clk 0:00:19.3]} 24... Rd8
{[%clk 0:00:20.8]} 25. Rg4 {[%clk 0:00:18.8]} 25... g6 {[%clk 0:00:18.9]} 26.
Rc7 {[%clk 0:00:17.9]} 26... Kf8 {[%clk 0:00:12.1]} 27. Qe5 {[%clk 0:00:14.9]}
27... Kg8 {[%clk 0:00:08.9]} 28. Rxg6+ {[%clk 0:00:14.6]} 1-0

[Event "Early-Titled-Tuesday-Blitz-October-17-2023"]
[Site "Chess.com"]
[Date "2023.10.17"]
[Round "7"]
[White "maracayo"]
[Black "Sanyura"]
[Result "0-1"]
[WhiteElo "2376"]
[BlackElo "2542"]
[TimeControl "180+1"]
[EndTime "9:20:39 PDT"]
[Termination "Sanyura won by resignation"]

1. e4 {[%clk 0:03:00.9]} 1... c6 {[%clk 0:02:54.1]} 2. Nf3 {[%clk 0:03:00]} 2...
d5 {[%clk 0:02:54.3]} 3. d3 {[%clk 0:02:59.9]} 3... dxe4 {[%clk 0:02:54.4]} 4.
dxe4 {[%clk 0:03:00.8]} 4... Qxd1+ {[%clk 0:02:54.8]} 5. Kxd1 {[%clk 0:03:01.1]}
5... Nd7 {[%clk 0:02:55.7]} 6. Bd3 {[%clk 0:03:01]} 6... Ngf6 {[%clk 0:02:54.4]}
7. Ke2 {[%clk 0:03:01]} 7... g6 {[%clk 0:02:53.8]} 8. Be3 {[%clk 0:02:49.5]}
8... Bg7 {[%clk 0:02:44.3]} 9. Nbd2 {[%clk 0:02:48.3]} 9... O-O {[%clk
0:02:27.2]} 10. h3 {[%clk 0:02:46.7]} 10... b6 {[%clk 0:02:22.2]} 11. a4 {[%clk
0:02:45.2]} 11... Bb7 {[%clk 0:02:21.3]} 12. a5 {[%clk 0:02:44.2]} 12... c5
{[%clk 0:02:21.7]} 13. Rhe1 {[%clk 0:02:29.7]} 13... Rfc8 {[%clk 0:02:08.4]} 14.
c3 {[%clk 0:02:25.1]} 14... Ne8 {[%clk 0:02:04.2]} 15. Bb5 {[%clk 0:02:14.2]}
15... Rc7 {[%clk 0:01:53.5]} 16. a6 {[%clk 0:01:38.8]} 16... Bc8 {[%clk
0:01:47.9]} 17. Nc4 {[%clk 0:01:31.4]} 17... Nd6 {[%clk 0:01:15.3]} 18. Nxd6
{[%clk 0:01:24.3]} 18... exd6 {[%clk 0:01:16.2]} 19. Red1 {[%clk 0:01:12]} 19...
Bf8 {[%clk 0:01:16.1]} 20. Nd2 {[%clk 0:00:58.5]} 20... Nf6 {[%clk 0:01:08.6]}
21. f4 {[%clk 0:00:54.6]} 21... Be6 {[%clk 0:01:03.8]} 22. Kf3 {[%clk
0:00:53.7]} 22... Rd8 {[%clk 0:00:59.5]} 23. g4 {[%clk 0:00:37.9]} 23... d5
{[%clk 0:00:46.7]} 24. f5 {[%clk 0:00:24.7]} 24... gxf5 {[%clk 0:00:36.7]} 25.
gxf5 {[%clk 0:00:19.9]} 25... dxe4+ {[%clk 0:00:36.8]} 26. Nxe4 {[%clk
0:00:19.7]} 26... Bd5 {[%clk 0:00:37.3]} 27. Rxd5 {[%clk 0:00:09.4]} 27... Nxd5
{[%clk 0:00:38.2]} 28. c4 {[%clk 0:00:09.2]} 28... Nxe3 {[%clk 0:00:36.7]} 29.
Rg1+ {[%clk 0:00:08.4]} 29... Kh8 {[%clk 0:00:35.5]} 30. Kxe3 {[%clk 0:00:08.1]}
30... Bh6+ {[%clk 0:00:33.6]} 31. Ke2 {[%clk 0:00:07]} 31... Re7 {[%clk
0:00:32.5]} 32. Kf3 {[%clk 0:00:06.6]} 32... Rd3+ {[%clk 0:00:32.4]} 0-1